fUSD/lending_fUSD_20240903
["ID","MTS","AMOUNT","RATE_DAILY","PERIOD"]
[337042221,1725376232406,-6620.15,0.00014452,2]
[337042222,1725376232415,-5798.91,0.00014452,2]
[337042223,1725376232425,-5902.05,0.00014452,2]
[337042224,1725376232435,-5887.13,0.00014452,2]
[337042225,1725376232444,-500.0,0.00014452,2]
[337042226,1725376232453,-215.3623552,0.00014452,2]
[337042227,1725376232462,-707.6,0.00014452,2]
[337042228,1725376232472,-4323.33,0.00014452,2]
[337042229,1725376232481,-1747.27,0.00014452,2]
[337042230,1725376232491,-2361.65,0.00014452,2]
[337042231,1725376232501,-2509.18,0.00014452,2]
[337042232,1725376232510,-500.0,0.00014452,2]
[337042233,1725376232519,-4283.7,0.00014452,2]
[337042234,1725376232528,-13097.26,0.00014452,2]
[337042235,1725376232537,-4769.26,0.00014452,2]
[337042236,1725376232550,-4653.86,0.00014452,2]
[337042237,1725376232559,-5359.37,0.00014452,2]
[337042238,1725376232568,-5134.96,0.00014452,2]
[337042239,1725376232577,-1263.76,0.00014452,2]
[337042240,1725376232586,-6306.3,0.00014452,2]
[337042241,1725376232595,-1252.47,0.00014452,2]
[337042242,1725376232604,-8020.43,0.00014452,2]
[337042243,1725376232614,-500.0,0.00014452,2]
[337042244,1725376232623,-500.0,0.00014452,2]
[337042245,1725376232633,-6700.68,0.00014452,2]
[337042246,1725376232642,-2576.67,0.00014452,2]
[337042247,1725376232651,-20557.05,0.00014453,2]
[337042248,1725376232661,-9665.22,0.00014453,2]
[337042249,1725376232670,-2384.02,0.00014453,2]
[337042250,1725376232679,-17201.82,0.00014453,2]
[337042251,1725376232689,-2060.72,0.00014453,2]
[337042252,1725376232698,-1091.4,0.00014453,2]
[337042253,1725376232707,-963.21,0.00014453,2]
[337042254,1725376232716,-500.0,0.00014453,2]
[337042255,1725376232725,-2702.03,0.00014453,2]
[337042256,1725376232734,-13641.71,0.00014453,2]
[337042257,1725376232743,-500.0,0.00014453,2]
[337042258,1725376232752,-57651.18589733,0.00014453,2]
[337042259,1725376232804,-1357.03628517,0.00014453,2]
[337042260,1725376233005,-500.0,0.00014442,2]
[337042261,1725376233014,-9011.97964083,0.00014453,2]
[337042262,1725376233025,-2850.97289394,0.00014453,2]
[337042263,1725376233036,-486.61826601,0.00014453,2]
[337042270,1725376240059,-207.0,0.00013117,2]
[337042271,1725376240068,-250.0,0.00013577,2]
[337042272,1725376240077,-18.394608,0.00014383,2]
[337042273,1725376240089,-154.40279845,0.00014383,2]
[337042274,1725376240099,-172.79740645,0.00014412,2]
[337042275,1725376240108,-500.0,0.00014452,2]
[337042276,1725376240117,-60.6034751,0.00014452,2]
[337042277,1725376240140,-17019.668867,0.00014452,2]
[337042278,1725376240152,-2684.1376579,0.00014452,2]
[337042279,1725376240162,-267.5821336,0.00014453,2]
[337042280,1725376240249,-5786.43048894,0.00014453,2]
[337042281,1725376240261,-1741.42238757,0.00014453,2]
[337042282,1725376240274,-453.8784,0.00014453,2]
[337042288,1725376242906,-500.0,0.00014442,2]
[337042289,1725376242916,-75.47544634,0.00014442,2]
[337042330,1725376243569,-424.52455366,0.00014442,2]
[337042332,1725376243580,-500.0,0.00014452,2]
[337042334,1725376243590,-93.15844814,0.00014453,2]
[337042336,1725376243602,-694.74624943,0.00014453,2]
[337042338,1725376243614,-446.51173508,0.00014453,2]
[337042343,1725376243649,-460.32635449,0.00014453,2]
[337042345,1725376243661,-281.326473,0.00014453,2]
[337042347,1725376243672,-289.41201897,0.00014453,2]
[337042349,1725376243683,-3685.57682047,0.00014453,2]
[337042351,1725376243695,-28598.71550703,0.00014453,2]
[337042353,1725376243704,-8132.68,0.00014453,2]
[337042355,1725376243714,-204.301748,0.00014453,2]
[337042357,1725376243723,-500.0,0.00014453,2]
[337042359,1725376243733,-2104.39,0.00014453,2]
[337042361,1725376243742,-1069.48,0.00014453,2]
[337042363,1725376243752,-3200.8675,0.00014453,2]
[337042365,1725376243761,-4744.19,0.00014453,2]
[337042367,1725376243771,-6515.91,0.00014453,2]
[337042368,1725376243780,-2048.256269,0.00014453,2]
[337042370,1725376243789,-154.362379,0.00014453,2]
[337042372,1725376243799,-2048.256269,0.00014453,2]
[337042374,1725376243810,-2137.310889,0.00014453,2]
[337042376,1725376243819,-1699.459005,0.00014453,2]
[337042378,1725376243829,-1020.108308,0.00014453,2]
[337042379,1725376243839,-774.898884,0.00014453,2]
[337042380,1725376243849,-1087.86,0.00014453,2]
[337042381,1725376243859,-8485.8,0.00014453,2]
[337042382,1725376243869,-700.106918,0.00014453,2]
[337042383,1725376243878,-1020.108308,0.00014453,2]
[337042384,1725376243887,-152.714659,0.00014453,2]
[337042385,1725376243897,-2009.49,0.00014453,2]
[337042386,1725376243906,-6095.02,0.00014453,2]
[337042387,1725376243915,-2336.64,0.00014453,2]
[337042388,1725376243925,-152.270263,0.00014453,2]
[337042389,1725376243935,-3544.33,0.00014453,2]
[337042390,1725376243945,-5742.271917,0.00014453,2]
[337042391,1725376243957,-3588.188083,0.00014453,2]
[337042392,1725376243968,-13722.75,0.00014453,2]
[337042393,1725376243978,-5331.92,0.00014453,2]
[337042394,1725376243987,-6761.06,0.00014453,2]
[337042395,1725376243998,-1903.89,0.00014453,2]
[337042396,1725376244007,-13360.08,0.00014453,2]
[337042397,1725376244017,-37163.6,0.00014453,2]
[337042398,1725376244027,-4258.16,0.00014453,2]
[337042399,1725376244036,-183.8791,0.00014453,2]
[337042400,1725376244046,-990.77,0.00014453,2]
[337042401,1725376244057,-85988.95,0.00014453,2]
[337042402,1725376244066,-8787.11,0.00014453,2]
[337042403,1725376244076,-180.39999663,0.00014462,2]
[337042404,1725376244085,-159.16619958,0.00014474,2]
[337042405,1725376244095,-2422.52877788,0.00014482,2]
[337042406,1725376244104,-856.09671586,0.00014483,2]
[337042407,1725376244113,-180.39999663,0.00014488,2]
[337042408,1725376244123,-893.56507836,0.00014509,2]
[337042409,1725376244132,-500.0,0.00014511,2]
[337042410,1725376244143,-481.53338237,0.00014511,2]
[337042411,1725376244153,-500.0,0.00014511,2]
[337042412,1725376244162,-500.0,0.00014511,2]
[337042413,1725376244172,-598.28921012,0.00014511,2]
[337042414,1725376244182,-1256.21,0.00014511,2]
[337042415,1725376244348,-500.0,0.00014511,2]
[337042416,1725376244373,-506.02550165,0.00014511,2]
[337042417,1725376244383,-3418.99,0.00014511,2]
[337042418,1725376244394,-572.31756094,0.00014511,2]
[337042419,1725376244404,-503.05495676,0.00014511,2]
[337042420,1725376244413,-2638.37,0.00014511,2]
[337042421,1725376244423,-505.18278126,0.00014511,2]
[337042422,1725376244432,-422.59250075,0.00014511,2]
[337042423,1725376244442,-500.0,0.00014511,2]
[337042424,1725376244451,-615.3,0.00014511,2]
[337042425,1725376244461,-500.64185506,0.00014511,2]
[337042426,1725376244471,-500.0,0.00014511,2]
[337042427,1725376244480,-2679.17,0.00014511,2]
[337042428,1725376244490,-500.0,0.00014511,2]
[337042429,1725376244499,-500.0,0.00014511,2]
[337042430,1725376244509,-500.0,0.00014511,2]
[337042431,1725376244519,-511.92564159,0.00014511,2]
[337042432,1725376244528,-3103.91,0.00014511,2]
[337042433,1725376244538,-752.57,0.00014511,2]
[337042434,1725376244548,-500.0,0.00014511,2]
[337042435,1725376244567,-500.0,0.00014511,2]
[337042436,1725376244577,-526.07047351,0.00014511,2]
[337042437,1725376244587,-510.22283036,0.00014511,2]
[337042438,1725376244598,-500.0,0.00014511,2]
[337042439,1725376244610,-547.33988316,0.00014511,2]
[337042440,1725376244621,-533.94186445,0.00014511,2]
[337042441,1725376244632,-500.0,0.00014511,2]
[337042442,1725376244643,-500.0,0.00014511,2]
[337042443,1725376244654,-500.0,0.00014511,2]
[337042444,1725376244665,-500.0,0.00014511,2]
[337042445,1725376244675,-500.0,0.00014511,2]
[337042446,1725376244685,-500.0,0.00014511,2]
[337042447,1725376244695,-500.0,0.00014511,2]
[337042448,1725376244707,-500.0,0.00014511,2]
[337042449,1725376244717,-652.21,0.00014511,2]
[337042450,1725376244727,-529.96,0.00014511,2]
[337042451,1725376244737,-587.24034607,0.00014511,2]
[337042452,1725376244747,-500.0,0.00014511,2]
[337042453,1725376244756,-500.0,0.00014511,2]
[337042454,1725376244766,-500.0,0.00014511,2]
[337042455,1725376244776,-500.0,0.00014511,2]
[337042456,1725376244786,-500.0,0.00014511,2]
[337042457,1725376244795,-500.0,0.00014511,2]
[337042458,1725376244809,-500.0,0.00014511,2]
[337042459,1725376244818,-561.79137335,0.00014511,2]
[337042460,1725376244827,-264.95863565,0.00014511,2]
[337042461,1725376244837,-500.0,0.00014511,2]
[337042462,1725376244847,-500.0,0.00014511,2]
[337042463,1725376244856,-500.0,0.00014511,2]
[337042464,1725376244866,-500.0,0.00014511,2]
[337042465,1725376244876,-500.0,0.00014511,2]
[337042466,1725376244886,-500.0,0.00014511,2]
[337042467,1725376244896,-500.0,0.00014511,2]
[337042468,1725376244906,-500.0,0.00014511,2]
[337042469,1725376244916,-6620.15,0.00014511,2]
[337042470,1725376244925,-6620.15,0.00014511,2]
[337042471,1725376244935,-6620.15,0.00014511,2]
[337042472,1725376244945,-500.0,0.00014511,2]
[337042473,1725376244954,-5798.91,0.00014511,2]
[337042474,1725376244963,-5798.91,0.00014511,2]
[337042475,1725376244973,-5798.91,0.00014511,2]
[337042476,1725376244982,-555.28094159,0.00014511,2]
[337042477,1725376244991,-696.46,0.00014511,2]
[337042478,1725376245001,-5902.05,0.00014511,2]
[337042479,1725376245010,-5902.05,0.00014511,2]
[337042480,1725376245020,-5902.05,0.00014511,2]
[337042481,1725376245029,-500.0,0.00014511,2]
[337042482,1725376245039,-500.0,0.00014511,2]
[337042483,1725376245048,-5887.13,0.00014511,2]
[337042484,1725376245060,-5887.13,0.00014511,2]
[337042485,1725376245070,-5887.13,0.00014511,2]
[337042486,1725376245079,-500.0,0.00014511,2]
[337042487,1725376245088,-500.0,0.00014511,2]
[337042488,1725376245098,-707.6,0.00014511,2]
[337042489,1725376245107,-707.6,0.00014511,2]
[337042490,1725376245116,-707.6,0.00014511,2]
[337042491,1725376245126,-500.0,0.00014511,2]
[337042492,1725376245135,-500.0,0.00014511,2]
[337042493,1725376245145,-500.0,0.00014511,2]
[337042494,1725376245155,-500.0,0.00014511,2]
[337042495,1725376245164,-500.0,0.00014511,2]
[337042496,1725376245174,-4323.33,0.00014511,2]
[337042497,1725376245187,-4323.33,0.00014511,2]
[337042498,1725376245196,-4323.33,0.00014511,2]
[337042499,1725376245206,-500.0,0.00014511,2]
[337042500,1725376245216,-500.0,0.00014511,2]
[337042501,1725376245227,-1747.27,0.00014511,2]
[337042502,1725376245236,-1747.27,0.00014511,2]
[337042503,1725376245246,-1747.27,0.00014511,2]
[337042504,1725376245256,-500.0,0.00014511,2]
[337042505,1725376245267,-2361.65,0.00014511,2]
[337042506,1725376245277,-2361.65,0.00014511,2]
[337042507,1725376245286,-2361.65,0.00014511,2]
[337042508,1725376245295,-531.23540695,0.00014511,2]
[337042509,1725376245306,-500.0,0.00014511,2]
[337042510,1725376245315,-500.0,0.00014511,2]
[337042511,1725376245325,-2509.18,0.00014511,2]
[337042512,1725376245335,-2509.18,0.00014511,2]
[337042513,1725376245344,-2509.18,0.00014511,2]
[337042514,1725376245354,-151.0,0.00014511,2]
[337042515,1725376245364,-500.0,0.00014511,2]
[337042516,1725376245373,-500.0,0.00014511,2]
[337042517,1725376245383,-500.0,0.00014511,2]
[337042518,1725376245393,-194.00038267,0.00014511,2]
[337042519,1725376245403,-1120.163901,0.00014511,2]
[337042520,1725376245412,-151.0,0.00014511,2]
[337042521,1725376245422,-1120.163901,0.00014511,2]
[337042522,1725376245432,-4283.7,0.00014511,2]
[337042523,1725376245442,-4283.7,0.00014511,2]
[337042524,1725376245451,-4283.7,0.00014511,2]
[337042525,1725376245461,-746.63,0.00014511,2]
[337042526,1725376245470,-13097.26,0.00014511,2]
[337042527,1725376245480,-13097.26,0.00014511,2]
[337042528,1725376245490,-13097.26,0.00014511,2]
[337042529,1725376245499,-500.0,0.00014511,2]
[337042530,1725376245509,-151.0,0.00014511,2]
[337042531,1725376245519,-4769.26,0.00014511,2]
[337042532,1725376245529,-151.0,0.00014511,2]
[337042533,1725376245538,-4769.26,0.00014511,2]
[337042534,1725376245548,-4769.26,0.00014511,2]
[337042535,1725376245559,-4653.86,0.00014511,2]
[337042536,1725376245569,-4653.86,0.00014511,2]
[337042537,1725376245578,-4653.86,0.00014511,2]
[337042539,1725376245588,-500.0,0.00014511,2]
[337042540,1725376245597,-151.0,0.00014511,2]
[337042542,1725376245607,-5359.37,0.00014511,2]
[337042543,1725376245616,-5359.37,0.00014511,2]
[337042544,1725376245625,-5359.37,0.00014511,2]
[337042545,1725376245635,-5134.96,0.00014511,2]
[337042546,1725376245645,-500.0,0.00014511,2]
[337042547,1725376245654,-1263.76,0.00014511,2]
[337042548,1725376245665,-1263.76,0.00014511,2]
[337042549,1725376245675,-162.301119,0.00014511,2]
[337042550,1725376245685,-1263.76,0.00014511,2]
[337042551,1725376245694,-1263.76,0.00014511,2]
[337042552,1725376245704,-1263.76,0.00014511,2]
[337042553,1725376245714,-5134.96,0.00014511,2]
[337042554,1725376245724,-500.0,0.00014511,2]
[337042555,1725376245735,-5134.96,0.00014511,2]
[337042556,1725376245745,-201.65315396,0.00014511,2]
[337042557,1725376245754,-6306.3,0.00014511,2]
[337042558,1725376245763,-6306.3,0.00014511,2]
[337042559,1725376245773,-6306.3,0.00014511,2]
[337042560,1725376245782,-151.0,0.00014511,2]
[337042561,1725376245791,-1252.47,0.00014511,2]
[337042562,1725376245800,-1252.47,0.00014511,2]
[337042564,1725376245811,-1252.47,0.00014511,2]
[337042565,1725376245820,-1252.47,0.00014511,2]
[337042566,1725376245829,-1252.47,0.00014511,2]
[337042567,1725376245838,-8020.43,0.00014511,2]
[337042568,1725376245848,-8020.43,0.00014511,2]
[337042569,1725376245858,-8020.43,0.00014511,2]
[337042570,1725376245868,-151.0,0.00014511,2]
[337042571,1725376245878,-151.0,0.00014511,2]
[337042572,1725376245887,-500.0,0.00014511,2]
[337042573,1725376245897,-162.301119,0.00014511,2]
[337042574,1725376245907,-500.0,0.00014511,2]
[337042575,1725376245916,-500.0,0.00014511,2]
[337042576,1725376245925,-500.0,0.00014511,2]
[337042577,1725376245934,-247.52176996,0.00014511,2]
[337042578,1725376245944,-500.0,0.00014511,2]
[337042579,1725376245953,-500.0,0.00014511,2]
[337042580,1725376245963,-500.0,0.00014511,2]
[337042581,1725376245972,-500.0,0.00014511,2]
[337042582,1725376245981,-500.0,0.00014511,2]
[337042583,1725376245990,-500.0,0.00014511,2]
[337042584,1725376246000,-500.0,0.00014511,2]
[337042585,1725376246009,-6700.68,0.00014511,2]
[337042586,1725376246018,-2576.67,0.00014511,2]
[337042587,1725376246029,-6700.68,0.00014511,2]
[337042588,1725376246039,-2576.67,0.00014511,2]
[337042589,1725376246048,-2576.67,0.00014511,2]
[337042590,1725376246060,-6700.68,0.00014511,2]
[337042591,1725376246074,-500.0,0.00014511,2]
[337042592,1725376246084,-500.0,0.00014511,2]
[337042593,1725376246093,-500.0,0.00014511,2]
[337042594,1725376246102,-500.0,0.00014511,2]
[337042595,1725376246111,-500.0,0.00014511,2]
[337042596,1725376246120,-500.0,0.00014511,2]
[337042597,1725376246130,-19764.41,0.00014511,2]
[337042598,1725376246139,-19764.41,0.00014511,2]
[337042599,1725376246148,-19764.41,0.00014511,2]
[337042600,1725376246158,-500.0,0.00014512,2]
[337042601,1725376246168,-500.0,0.00014512,2]
[337042602,1725376246178,-500.0,0.00014512,2]
[337042603,1725376246187,-500.0,0.00014512,2]
[337042604,1725376246199,-500.0,0.00014512,2]
[337042605,1725376246208,-504.11128293,0.00014512,2]
[337042606,1725376246218,-500.0,0.00014512,2]
[337042607,1725376246227,-500.0,0.00014512,2]
[337042608,1725376246238,-500.0,0.00014512,2]
[337042609,1725376246247,-500.0,0.00014512,2]
[337042610,1725376246257,-500.0,0.00014512,2]
[337042611,1725376246266,-500.0,0.00014512,2]
[337042612,1725376246277,-500.0,0.00014512,2]
[337042613,1725376246286,-500.0,0.00014512,2]
[337042614,1725376246295,-502.65089068,0.00014512,2]
[337042615,1725376246311,-561.37027387,0.00014512,2]
[337042616,1725376246321,-4978.74,0.00014512,2]
[337042617,1725376246331,-500.0,0.00014512,2]
[337042618,1725376246340,-500.0,0.00014512,2]
[337042619,1725376246350,-545.20304825,0.00014512,2]
[337042620,1725376246359,-500.0,0.00014512,2]
[337042621,1725376246370,-325.7383695,0.00014512,2]
[337042622,1725376246379,-288.39251534,0.00014512,2]
[337042623,1725376246389,-176.18980258,0.00014512,2]
[337042624,1725376246398,-1769.91,0.00014512,2]
[337042625,1725376246407,-500.0,0.00014512,2]
[337042626,1725376246417,-846.02,0.00014512,2]
[337042627,1725376246427,-1256.21,0.00014512,2]
[337042628,1725376246437,-500.0,0.00014512,2]
[337042629,1725376246447,-500.0,0.00014512,2]
[337042630,1725376246457,-1676.43,0.00014512,2]
[337042631,1725376246467,-5283.27,0.00014512,2]
[337042632,1725376246476,-455.10459788,0.00014512,2]
[337042633,1725376246486,-500.0,0.00014512,2]
[337042634,1725376246496,-500.0,0.00014512,2]
[337042635,1725376246505,-209.83568997,0.00014512,2]
[337042636,1725376246515,-2687.78,0.00014512,2]
[337042637,1725376246524,-500.0,0.00014512,2]
[337042638,1725376246533,-235.94174367,0.00014512,2]
[337042639,1725376246542,-508.92032861,0.00014512,2]
[337042640,1725376246552,-1224.28,0.00014512,2]
[337042641,1725376246565,-448.76394294,0.00014512,2]
[337042642,1725376246574,-2746.21,0.00014512,2]
[337042643,1725376246584,-504.22425469,0.00014512,2]
[337042644,1725376246595,-500.0,0.00014512,2]
[337042645,1725376246604,-500.0,0.00014512,2]
[337042646,1725376246614,-500.0,0.00014512,2]
[337042647,1725376246623,-3418.99,0.00014512,2]
[337042648,1725376246633,-1754.21,0.00014512,2]
[337042649,1725376246643,-500.0,0.00014512,2]
[337042650,1725376246652,-504.1129082,0.00014512,2]
[337042651,1725376246802,-503.98144214,0.00014512,2]
[337042652,1725376246813,-500.0,0.00014512,2]
[337042653,1725376246823,-500.0,0.00014512,2]
[337042654,1725376246833,-5175.63,0.00014512,2]
[337042655,1725376246842,-500.0,0.00014512,2]
[337042656,1725376246853,-509.79968134,0.00014512,2]
[337042657,1725376246862,-500.0,0.00014512,2]
[337042658,1725376246872,-510.15455304,0.00014512,2]
[337042659,1725376246881,-2638.37,0.00014512,2]
[337042660,1725376246891,-501.27942754,0.00014512,2]
[337042661,1725376246901,-505.18998397,0.00014512,2]
[337042662,1725376246910,-500.0,0.00014512,2]
[337042663,1725376246919,-500.0,0.00014512,2]
[337042664,1725376246929,-2935.8,0.00014512,2]
[337042665,1725376246938,-500.0,0.00014512,2]
[337042666,1725376246947,-3091.63,0.00014512,2]
[337042667,1725376246956,-500.0,0.00014512,2]
[337042668,1725376246965,-500.0,0.00014512,2]
[337042669,1725376246974,-500.0,0.00014512,2]
[337042670,1725376246983,-502.1354554,0.00014512,2]
[337042671,1725376246994,-500.0,0.00014512,2]
[337042672,1725376247004,-500.0,0.00014512,2]
[337042673,1725376247013,-500.0,0.00014512,2]
[337042674,1725376247025,-500.0,0.00014512,2]
[337042675,1725376247034,-499.58437209,0.00014512,2]
[337042676,1725376247044,-500.0,0.00014512,2]
[337042677,1725376247056,-471.96402778,0.00014512,2]
[337042678,1725376247065,-500.0,0.00014512,2]
[337042679,1725376247074,-615.3,0.00014512,2]
[337042680,1725376247083,-500.0,0.00014512,2]
[337042681,1725376247093,-500.0,0.00014512,2]
[337042682,1725376247105,-272.87831194,0.00014512,2]
[337042683,1725376247116,-500.0,0.00014512,2]
[337042684,1725376247125,-498.57838593,0.00014512,2]
[337042685,1725376247134,-885.93,0.00014512,2]
[337042686,1725376247143,-593.02,0.00014512,2]
[337042687,1725376247153,-498.57153353,0.00014512,2]
[337042688,1725376247162,-500.0,0.00014512,2]
[337042689,1725376247171,-1059.97,0.00014512,2]
[337042690,1725376247182,-500.0,0.00014512,2]
[337042691,1725376247193,-292.59857564,0.00014512,2]
[337042692,1725376247202,-506.88311914,0.00014512,2]
[337042693,1725376247211,-508.72061803,0.00014512,2]
[337042694,1725376247221,-500.0,0.00014512,2]
[337042695,1725376247231,-508.31197356,0.00014512,2]
[337042696,1725376247240,-510.6744106,0.00014512,2]
[337042697,1725376247250,-500.0,0.00014512,2]
[337042698,1725376247262,-3198.44,0.00014512,2]
[337042699,1725376247272,-2297.39,0.00014512,2]
[337042700,1725376247284,-577.08483178,0.00014512,2]
[337042701,1725376247295,-515.53351469,0.00014512,2]
[337042702,1725376247307,-2679.17,0.00014512,2]
[337042703,1725376247317,-950.72,0.00014512,2]
[337042704,1725376247326,-523.87068199,0.00014512,2]
[337042705,1725376247336,-3064.9,0.00014512,2]
[337042706,1725376247346,-500.0,0.00014512,2]
[337042707,1725376247355,-498.63135953,0.00014512,2]
[337042708,1725376247365,-514.83145578,0.00014512,2]
[337042709,1725376247375,-500.0,0.00014512,2]
[337042710,1725376247385,-500.0,0.00014512,2]
[337042711,1725376247396,-167.13203485,0.00014512,2]
[337042712,1725376247405,-500.0,0.00014512,2]
[337042713,1725376247415,-500.0,0.00014512,2]
[337042714,1725376247424,-391.76595345,0.00014512,2]
[337042715,1725376247434,-500.0,0.00014512,2]
[337042716,1725376247444,-503.40818955,0.00014512,2]
[337042717,1725376247453,-500.0,0.00014512,2]
[337042718,1725376247463,-500.0,0.00014512,2]
[337042719,1725376247472,-334.38185412,0.00014512,2]
[337042720,1725376247482,-500.0,0.00014512,2]
[337042721,1725376247491,-1437.68,0.00014512,2]
[337042722,1725376247502,-500.0,0.00014512,2]
[337042723,1725376247514,-643.93,0.00014512,2]
[337042724,1725376247524,-500.0,0.00014512,2]
[337042725,1725376247535,-500.0,0.00014512,2]
[337042726,1725376247545,-500.0,0.00014512,2]
[337042727,1725376247556,-500.0,0.00014512,2]
[337042728,1725376247565,-500.0,0.00014512,2]
[337042729,1725376247575,-500.0,0.00014512,2]
[337042730,1725376247593,-500.0,0.00014512,2]
[337042731,1725376247602,-500.0,0.00014512,2]
[337042732,1725376247612,-1863.32,0.00014512,2]
[337042733,1725376247621,-826.96,0.00014512,2]
[337042734,1725376247630,-554.07725034,0.00014512,2]
[337042735,1725376247640,-502.2272334,0.00014512,2]
[337042736,1725376247650,-500.0,0.00014512,2]
[337042737,1725376247659,-500.0,0.00014512,2]
[337042738,1725376247669,-2441.85,0.00014512,2]
[337042739,1725376247678,-497.69040667,0.00014512,2]
[337042740,1725376247688,-500.0,0.00014512,2]
[337042741,1725376247697,-559.2195409,0.00014512,2]
[337042742,1725376247706,-3103.91,0.00014512,2]
[337042743,1725376247715,-653.92,0.00014512,2]
[337042744,1725376247725,-523.72663887,0.00014512,2]
[337042745,1725376247734,-500.0,0.00014512,2]
[337042746,1725376247743,-3931.48,0.00014512,2]
[337042747,1725376247752,-150.0,0.00014512,2]
[337042748,1725376247761,-500.0,0.00014512,2]
[337042749,1725376247770,-752.57,0.00014512,2]
[337042750,1725376247779,-543.11034895,0.00014512,2]
[337042751,1725376247789,-3085.4,0.00014512,2]
[337042752,1725376247798,-500.0,0.00014512,2]
[337042753,1725376247807,-500.0,0.00014512,2]
[337042754,1725376247816,-500.0,0.00014512,2]
[337042755,1725376247825,-507.00720623,0.00014512,2]
[337042756,1725376247834,-500.0,0.00014512,2]
[337042757,1725376247843,-728.28,0.00014512,2]
[337042758,1725376247852,-679.81,0.00014512,2]
[337042759,1725376247861,-500.0,0.00014512,2]
[337042760,1725376247870,-500.0,0.00014512,2]
[337042761,1725376247879,-4499.87,0.00014512,2]
[337042762,1725376247888,-500.0,0.00014512,2]
[337042763,1725376247897,-500.0,0.00014512,2]
[337042764,1725376247906,-2475.62,0.00014512,2]
[337042765,1725376247916,-527.02666128,0.00014512,2]
[337042766,1725376247925,-500.0,0.00014512,2]
[337042767,1725376247934,-500.0,0.00014512,2]
[337042768,1725376247944,-500.0,0.00014512,2]
[337042769,1725376247952,-1099.34,0.00014512,2]
[337042770,1725376247961,-500.0,0.00014512,2]
[337042771,1725376247970,-500.0,0.00014512,2]
[337042772,1725376247979,-500.0,0.00014512,2]
[337042773,1725376247989,-500.0,0.00014512,2]
[337042774,1725376247998,-500.0,0.00014512,2]
[337042775,1725376248007,-500.0,0.00014512,2]
[337042776,1725376248016,-6770.84,0.00014512,2]
[337042777,1725376248025,-500.0,0.00014512,2]
[337042778,1725376248034,-289.89590253,0.00014512,2]
[337042779,1725376248045,-151.0,0.00014512,2]
[337042780,1725376248057,-500.0,0.00014512,2]
[337042781,1725376248066,-2946.01,0.00014512,2]
[337042782,1725376248076,-512.16918408,0.00014512,2]
[337042783,1725376248086,-151.0,0.00014512,2]
[337042784,1725376248095,-500.0,0.00014512,2]
[337042785,1725376248105,-500.0,0.00014512,2]
[337042786,1725376248114,-151.0,0.00014512,2]
[337042787,1725376248123,-684.14,0.00014512,2]
[337042788,1725376248133,-500.0,0.00014512,2]
[337042789,1725376248142,-500.0,0.00014512,2]
[337042790,1725376248152,-500.0,0.00014512,2]
[337042791,1725376248162,-500.0,0.00014512,2]
[337042792,1725376248171,-3069.16,0.00014512,2]
[337042793,1725376248180,-643.33139933,0.00014512,2]
[337042794,1725376248194,-500.0,0.00014512,2]
[337042795,1725376248203,-500.0,0.00014512,2]
[337042796,1725376248212,-500.0,0.00014512,2]
[337042797,1725376248221,-500.0,0.00014512,2]
[337042798,1725376248232,-500.0,0.00014512,2]
[337042799,1725376248241,-500.0,0.00014512,2]